[Event "The Kvibergspelen 2023"]
[Site "Kviberg Park Hotel & Conference, Krutvagen 2, Gothenburg, Sweden"]
[Date "2023.09.16"]
[Round "6.20"]
[White "Kashwan, Hassan"]
[Black "Holm, Ragnar"]
[Result "1/2-1/2"]
[TimeControl "15 minutes + 5 seconds per move from move one (Round 1 - 4) / 90 minutes + 30 seconds per move from move one (Round 5 - 8)"]
[WhiteFideId "137122555"]
[BlackFideId "1505858"]
[WhiteElo "1901"]
[BlackElo "2128"]

1. d4 {[%clk 01:18:43]} {[%emt 00:12:16]} d5 {[%clk 01:30:39]} {[%emt
00:00:22]} 2. Nf3 {[%clk 01:18:54]} {[%emt 00:00:18]} Nf6 {[%clk 01:30:45]}
{[%emt 00:00:24]} 3. c4 {[%clk 01:18:12]} {[%emt 00:01:13]} e6 {[%clk
01:30:21]} {[%emt 00:00:54]} 4. Nc3 {[%clk 01:18:06]} {[%emt 00:00:35]} c6
{[%clk 01:30:00]} {[%emt 00:00:52]} 5. Bg5 {[%clk 01:17:13]} {[%emt 00:01:23]}
dxc4 {[%clk 01:28:36]} {[%emt 00:01:54]} 6. e3 {[%clk 01:10:59]} {[%emt
00:06:43]} b5 {[%clk 01:27:29]} {[%emt 00:01:37]} 7. a4 {[%clk 01:05:02]}
{[%emt 00:06:27]} Bb4 {[%clk 01:26:56]} {[%emt 00:01:03]} 8. Nd2 {[%clk
01:04:25]} {[%emt 00:01:06]} Bb7 {[%clk 01:16:08]} {[%emt 00:11:19]} 9. Qf3
{[%clk 00:58:34]} {[%emt 00:06:21]} Qa5 {[%clk 01:06:38]} {[%emt 00:10:01]} 10.
Bxf6 {[%clk 00:57:36]} {[%emt 00:01:27]} gxf6 {[%clk 01:07:00]} {[%emt
00:00:08]} 11. Qxf6 {[%clk 00:49:21]} {[%emt 00:08:46]} Rg8 {[%clk 01:07:25]}
{[%emt 00:00:05]} 12. Be2 {[%clk 00:46:11]} {[%emt 00:03:39]} Nd7 {[%clk
01:01:39]} {[%emt 00:06:17]} 13. Qh4 {[%clk 00:45:55]} {[%emt 00:00:45]} Bxc3
{[%clk 01:00:22]} {[%emt 00:01:48]} 14. bxc3 {[%clk 00:45:01]} {[%emt
00:01:24]} Qxc3 {[%clk 01:00:27]} {[%emt 00:00:25]} 15. Rd1 {[%clk 00:44:44]}
{[%emt 00:00:46]} c5 {[%clk 00:57:56]} {[%emt 00:03:01]} 16. axb5 {[%clk
00:39:34]} {[%emt 00:05:40]} cxd4 {[%clk 00:56:23]} {[%emt 00:02:02]} 17. Qxd4
{[%clk 00:35:23]} {[%emt 00:04:42]} Qxd4 {[%clk 00:56:31]} {[%emt 00:00:22]} 18.
exd4 {[%clk 00:35:48]} {[%emt 00:00:05]} Nb6 {[%clk 00:56:09]} {[%emt
00:00:53]} 19. Bf3 {[%clk 00:32:40]} {[%emt 00:03:37]} Bxf3 {[%clk 00:55:55]}
{[%emt 00:00:45]} 20. gxf3 {[%clk 00:32:58]} {[%emt 00:00:11]} Ke7 {[%clk
00:54:40]} {[%emt 00:01:45]} 21. Ne4 {[%clk 00:31:52]} {[%emt 00:01:35]} Nd5
{[%clk 00:52:39]} {[%emt 00:02:32]} 22. Ra1 {[%clk 00:31:35]} {[%emt 00:00:47]}
Rgb8 {[%clk 00:50:21]} {[%emt 00:02:49]} 23. O-O {[%clk 00:23:17]} {[%emt
00:08:48]} Rxb5 {[%clk 00:49:01]} {[%emt 00:01:50]} 24. Rfc1 {[%clk 00:22:51]}
{[%emt 00:00:55]} Rb4 {[%clk 00:46:17]} {[%emt 00:03:14]} 25. Ra6 {[%clk
00:17:24]} {[%emt 00:05:57]} c3 {[%clk 00:41:24]} {[%emt 00:05:23]} 26. Nxc3
{[%clk 00:10:03]} {[%emt 00:07:51]} Nxc3 {[%clk 00:41:29]} {[%emt 00:00:25]} 27.
Rxc3 {[%clk 00:10:13]} {[%emt 00:00:20]} Rxd4 {[%clk 00:41:54]} {[%emt
00:00:05]} 28. Kf1 {[%clk 00:10:16]} {[%emt 00:00:28]} Rd6 {[%clk 00:36:03]}
{[%emt 00:06:20]} 29. Rc7+ {[%clk 00:10:16]} {[%emt 00:00:30]} Rd7 {[%clk
00:36:17]} {[%emt 00:00:16]} 30. Rc4 {[%clk 00:10:28]} {[%emt 00:00:18]} Rb8
{[%clk 00:33:52]} {[%emt 00:02:55]} 31. Rca4 {[%clk 00:10:40]} {[%emt
00:00:18]} Rbb7 {[%clk 00:34:04]} {[%emt 00:00:18]} 32. Rh4 {[%clk 00:10:42]}
{[%emt 00:00:27]} Rb2 {[%clk 00:31:28]} {[%emt 00:03:07]} 33. Rxh7 {[%clk
00:10:40]} {[%emt 00:00:32]} Kf6 {[%clk 00:31:42]} {[%emt 00:00:16]} 34. f4
{[%clk 00:05:31]} {[%emt 00:05:39]} Kg6 {[%clk 00:28:06]} {[%emt 00:04:06]} 35.
Rh3 {[%clk 00:05:48]} {[%emt 00:00:13]} Rb4 {[%clk 00:18:34]} {[%emt 00:10:02]}
36. Rf3 {[%clk 00:05:55]} {[%emt 00:00:22]} Kf5 {[%clk 00:18:28]} {[%emt
00:00:36]} 37. Ra5+ {[%clk 00:05:51]} {[%emt 00:00:34]} Kf6 {[%clk 00:17:09]}
{[%emt 00:01:49]} 38. Kg2 {[%clk 00:05:45]} {[%emt 00:00:35]} Rbb7 {[%clk
00:15:23]} {[%emt 00:02:17]} 39. h4 {[%clk 00:05:34]} {[%emt 00:00:41]} Rd8
{[%clk 00:15:34]} {[%emt 00:00:19]} 40. f5 {[%clk 00:05:46]} {[%emt 00:00:19]}
Rh8 {[%clk 00:13:25]} {[%emt 00:02:39]} 41. fxe6+ {[%clk 00:06:09]} {[%emt
00:00:07]} Kxe6 {[%clk 00:13:46]} {[%emt 00:00:09]} 42. h5 {[%clk 00:05:43]}
Rc7 {[%clk 00:11:39]} {[%emt 00:03:33]} 43. Ra6+ {[%clk 00:05:57]} Ke7 {[%clk
00:11:41]} {[%emt 00:00:43]} 44. h6 {[%clk 00:06:14]} {[%emt 00:00:13]} Rd7
{[%clk 00:10:31]} {[%emt 00:01:41]} 45. Raf6 {[%clk 00:05:19]} {[%emt
00:01:25]} Rh7 {[%clk 00:09:52]} {[%emt 00:01:09]} 46. Ra6 {[%clk 00:05:28]}
{[%emt 00:00:21]} Rh8 {[%clk 00:10:09]} {[%emt 00:00:13]} 47. Re3+ {[%clk
00:05:17]} {[%emt 00:00:41]} Kd8 {[%clk 00:10:03]} {[%emt 00:00:36]} 48. Kg3
{[%clk 00:04:56]} {[%emt 00:00:51]} Kc8 {[%clk 00:06:13]} {[%emt 00:04:19]} 49.
Rc6+ {[%clk 00:03:25]} {[%emt 00:02:01]} Kb7 {[%clk 00:06:27]} {[%emt
00:00:16]} 50. Rf6 {[%clk 00:03:32]} {[%emt 00:00:23]} Rc7 {[%clk 00:06:05]}
{[%emt 00:00:52]} 51. Rb3+ {[%clk 00:03:52]} {[%emt 00:00:10]} Kc8 {[%clk
00:06:20]} {[%emt 00:00:16]} 52. f4 {[%clk 00:04:04]} {[%emt 00:00:18]} Rh7
{[%clk 00:05:36]} {[%emt 00:01:14]} 53. Kg4 {[%clk 00:04:25]} {[%emt 00:00:08]}
Kd8 {[%clk 00:05:24]} {[%emt 00:00:42]} 54. Re3 {[%clk 00:04:38]} {[%emt
00:00:17]} Rc5 {[%clk 00:05:18]} {[%emt 00:00:36]} 55. Re5 {[%clk 00:03:40]}
{[%emt 00:01:28]} Rc1 {[%clk 00:05:36]} {[%emt 00:00:13]} 56. Rg5 {[%clk
00:03:34]} {[%emt 00:00:33]} Rg1+ {[%clk 00:05:25]} {[%emt 00:00:42]} 57. Kf5
{[%clk 00:03:11]} {[%emt 00:00:54]} Rh1 {[%clk 00:05:42]} {[%emt 00:00:13]} 58.
Ra6 {[%clk 00:03:10]} {[%emt 00:00:31]} R1xh6 {[%clk 00:05:54]} {[%emt
00:00:19]} 59. Rg8+ {[%clk 00:03:27]} {[%emt 00:00:12]} Ke7 {[%clk 00:05:35]}
{[%emt 00:00:49]} 60. Rxa7+ {[%clk 00:03:52]} {[%emt 00:00:06]} Kd6 {[%clk
00:05:51]} {[%emt 00:00:13]} 61. Rd8+ {[%clk 00:03:55]} {[%emt 00:00:28]} Kc6
{[%clk 00:05:59]} {[%emt 00:00:22]} 62. Ra6+ {[%clk 00:03:24]} {[%emt
00:01:00]} Kc7 {[%clk 00:06:23]} {[%emt 00:00:06]} 63. Rxh6 {[%clk 00:03:38]}
{[%emt 00:00:16]} Rxh6 {[%clk 00:06:51]} {[%emt 00:00:03]} 64. Rd3 {[%clk
00:03:49]} {[%emt 00:00:18]} Re6 {[%clk 00:06:55]} {[%emt 00:00:27]} 65. Kg5
{[%clk 00:03:07]} {[%emt 00:01:11]} Rg6+ {[%clk 00:07:20]} {[%emt 00:00:06]} 66.
Kf5 {[%clk 00:02:51]} {[%emt 00:00:46]} Re6 {[%clk 00:07:46]} {[%emt 00:00:04]}
67. Rd5 {[%clk 00:02:54]} {[%emt 00:00:27]} Rh6 {[%clk 00:07:34]} {[%emt
00:00:41]} 68. Kg5 {[%clk 00:03:00]} {[%emt 00:00:25]} Rg6+ {[%clk 00:07:58]}
{[%emt 00:00:05]} 69. Kh5 {[%clk 00:03:04]} {[%emt 00:00:26]} Rg1 {[%clk
00:04:16]} {[%emt 00:04:13]} 70. Rf5 {[%clk 00:02:54]} {[%emt 00:00:40]} Kd6
{[%clk 00:04:26]} {[%emt 00:00:20]} 71. Rxf7 {[%clk 00:02:26]} {[%emt
00:00:57]} Ke6 {[%clk 00:04:52]} {[%emt 00:00:04]} 72. Rf8 {[%clk 00:02:24]}
{[%emt 00:00:32]} Ke7 {[%clk 00:05:13]} {[%emt 00:00:10]} 73. Rf5 {[%clk
00:02:41]} {[%emt 00:00:12]} Ke6 {[%clk 00:05:34]} {[%emt 00:00:09]} 74. Ra5
{[%clk 00:02:28]} {[%emt 00:00:42]} Kf6 {[%clk 00:05:55]} {[%emt 00:00:09]} 75.
Ra6+ {[%clk 00:02:51]} {[%emt 00:00:07]} Kf5 {[%clk 00:06:14]} {[%emt
00:00:11]} 1/2-1/2

[Event "The Kvibergspelen 2023"]
[Site "Kviberg Park Hotel & Conference, Krutvagen 2, Gothenburg, Sweden"]
[Date "2023.09.17"]
[Round "7.1"]
[White "Seo, Jung Min"]
[Black "Larkin, Vladyslav"]
[Result "1/2-1/2"]
[TimeControl "15 minutes + 5 seconds per move from move one (Round 1 - 4) / 90 minutes + 30 seconds per move from move one (Round 5 - 8)"]
[WhiteTitle "IM"]
[BlackTitle "IM"]
[WhiteFideId "1734687"]
[BlackFideId "14152894"]
[WhiteElo "2462"]
[BlackElo "2464"]

1. d4 {[%clk 01:30:05]} {[%emt 00:00:55]} d6 {[%clk 01:16:29]} {[%emt
00:14:32]} 2. e4 {[%clk 01:30:32]} {[%emt 00:00:03]} Nf6 {[%clk 01:16:52]}
{[%emt 00:00:07]} 3. Nc3 {[%clk 01:31:00]} {[%emt 00:00:02]} c6 {[%clk
01:16:59]} {[%emt 00:00:23]} 4. Nf3 {[%clk 01:20:10]} {[%emt 00:11:21]} Bg4
{[%clk 01:17:22]} {[%emt 00:00:06]} 5. h3 {[%clk 01:18:52]} {[%emt 00:01:48]}
Bh5 {[%clk 01:17:47]} {[%emt 00:00:06]} 6. g4 {[%clk 01:10:59]} {[%emt
00:08:22]} Bg6 {[%clk 01:18:08]} {[%emt 00:00:08]} 7. Bd3 {[%clk 01:11:17]}
{[%emt 00:00:13]} e6 {[%clk 01:16:44]} {[%emt 00:01:54]} 8. g5 {[%clk
01:08:20]} {[%emt 00:03:27]} Nfd7 {[%clk 01:16:31]} {[%emt 00:00:43]} 9. Nh4
{[%clk 01:06:06]} {[%emt 00:02:43]} d5 {[%clk 01:12:33]} {[%emt 00:04:28]} 10.
Nxg6 {[%clk 01:05:50]} {[%emt 00:00:46]} hxg6 {[%clk 01:13:00]} {[%emt
00:00:04]} 11. Ne2 {[%clk 01:02:10]} {[%emt 00:04:10]} Be7 {[%clk 01:12:05]}
{[%emt 00:01:24]} 12. f4 {[%clk 01:01:38]} {[%emt 00:01:03]} Nb6 {[%clk
01:04:00]} {[%emt 00:08:35]} 13. c3 {[%clk 00:59:05]} {[%emt 00:03:03]} dxe4
{[%clk 01:04:20]} {[%emt 00:00:10]} 14. Bxe4 {[%clk 00:59:32]} {[%emt
00:00:03]} Nc4 {[%clk 01:04:45]} {[%emt 00:00:05]} 15. Qd3 {[%clk 00:57:36]}
{[%emt 00:02:25]} Nd6 {[%clk 01:05:03]} {[%emt 00:00:12]} 16. Bg2 {[%clk
00:57:43]} {[%emt 00:00:24]} Qb6 {[%clk 01:02:05]} {[%emt 00:03:28]} 17. b3
{[%clk 00:57:48]} {[%emt 00:00:25]} a5 {[%clk 01:01:31]} {[%emt 00:01:04]} 18.
Be3 {[%clk 00:56:32]} {[%emt 00:01:45]} Nf5 {[%clk 00:59:38]} {[%emt 00:02:24]}
19. Bf2 {[%clk 00:55:56]} {[%emt 00:01:05]} Qa6 {[%clk 00:57:05]} {[%emt
00:03:04]} 20. Qd1 {[%clk 00:46:39]} {[%emt 00:09:46]} Nd7 {[%clk 00:51:51]}
{[%emt 00:05:45]} 21. O-O {[%clk 00:46:37]} {[%emt 00:00:31]} Nb6 {[%clk
00:46:42]} {[%emt 00:05:39]} 22. c4 {[%clk 00:43:40]} {[%emt 00:03:28]} a4
{[%clk 00:47:07]} {[%emt 00:00:05]} 23. Rb1 {[%clk 00:42:39]} {[%emt 00:01:31]}
O-O {[%clk 00:47:06]} {[%emt 00:00:30]} 24. Qc2 {[%clk 00:41:50]} {[%emt
00:01:19]} axb3 {[%clk 00:41:00]} {[%emt 00:06:37]} 25. axb3 {[%clk 00:42:10]}
{[%emt 00:00:10]} Bb4 {[%clk 00:41:21]} {[%emt 00:00:09]} 26. Rfd1 {[%clk
00:40:52]} {[%emt 00:01:47]} Rfc8 {[%clk 00:37:25]} {[%emt 00:04:26]} 27. Nc1
{[%clk 00:34:38]} {[%emt 00:06:44]} Rd8 {[%clk 00:28:16]} {[%emt 00:09:40]} 28.
Nd3 {[%clk 00:34:19]} {[%emt 00:00:49]} Qa5 {[%clk 00:28:33]} {[%emt 00:00:13]}
29. Nxb4 {[%clk 00:32:32]} {[%emt 00:02:17]} Qxb4 {[%clk 00:28:59]} {[%emt
00:00:04]} 30. Qd2 {[%clk 00:32:21]} {[%emt 00:00:40]} Qxd2 {[%clk 00:28:01]}
{[%emt 00:01:28]} 31. Rxd2 {[%clk 00:32:42]} {[%emt 00:00:10]} Ra6 {[%clk
00:28:29]} {[%emt 00:00:02]} 32. Rbd1 {[%clk 00:32:15]} {[%emt 00:00:57]} Ne7
{[%clk 00:25:36]} {[%emt 00:03:23]} 33. Bf1 {[%clk 00:31:36]} {[%emt 00:01:08]}
Nbc8 {[%clk 00:25:42]} {[%emt 00:00:24]} 34. Bg2 {[%clk 00:31:12]} {[%emt
00:00:54]} Kh7 {[%clk 00:18:51]} {[%emt 00:07:22]} 35. Bf1 {[%clk 00:29:42]}
{[%emt 00:02:00]} Ra3 {[%clk 00:19:03]} {[%emt 00:00:18]} 36. Rd3 {[%clk
00:29:36]} {[%emt 00:00:36]} Nf5 {[%clk 00:19:14]} {[%emt 00:00:19]} 37. Bg2
{[%clk 00:29:54]} {[%emt 00:00:12]} Nce7 {[%clk 00:19:01]} {[%emt 00:00:43]} 38.
Be1 {[%clk 00:29:03]} {[%emt 00:01:21]} Ra2 {[%clk 00:19:26]} {[%emt 00:00:05]}
39. Bb4 {[%clk 00:27:49]} {[%emt 00:01:44]} Nh4 {[%clk 00:18:47]} {[%emt
00:01:08]} 40. Be4 {[%clk 00:25:57]} {[%emt 00:02:22]} Nef5 {[%clk 00:19:13]}
{[%emt 00:00:05]} 41. Kf1 {[%clk 00:16:31]} {[%emt 00:09:55]} Rda8 {[%clk
00:18:09]} {[%emt 00:01:34]} 42. Be1 {[%clk 00:16:19]} {[%emt 00:00:43]} Rb2
{[%clk 00:14:07]} {[%emt 00:04:32]} 43. Bxh4 {[%clk 00:15:46]} {[%emt
00:01:03]} Nxh4 {[%clk 00:14:31]} {[%emt 00:00:06]} 44. R1d2 {[%clk 00:16:03]}
{[%emt 00:00:12]} Ra1+ {[%clk 00:14:16]} {[%emt 00:00:46]} 45. Kf2 {[%clk
00:16:30]} {[%emt 00:00:03]} Rbb1 {[%clk 00:13:17]} {[%emt 00:01:29]} 46. d5
{[%clk 00:08:36]} {[%emt 00:08:24]} cxd5 {[%clk 00:13:42]} {[%emt 00:00:05]} 47.
cxd5 {[%clk 00:09:04]} {[%emt 00:00:03]} Rf1+ {[%clk 00:11:13]} {[%emt
00:02:58]} 48. Kg3 {[%clk 00:09:01]} {[%emt 00:00:32]} exd5 {[%clk 00:11:38]}
{[%emt 00:00:05]} 49. Bxd5 {[%clk 00:07:56]} {[%emt 00:01:35]} Nf5+ {[%clk
00:11:19]} {[%emt 00:00:50]} 50. Kh2 {[%clk 00:08:13]} {[%emt 00:00:12]} Rae1
{[%clk 00:09:11]} {[%emt 00:02:38]} 51. Bxb7 {[%clk 00:07:34]} {[%emt
00:01:10]} Ne3 {[%clk 00:09:34]} {[%emt 00:00:07]} 52. Kg3 {[%clk 00:04:20]}
{[%emt 00:03:44]} Nf5+ {[%clk 00:09:40]} {[%emt 00:00:24]} 53. Kh2 {[%clk
00:04:44]} {[%emt 00:00:05]} Rxf4 {[%clk 00:09:41]} {[%emt 00:00:30]} 54. Rf3
{[%clk 00:05:00]} {[%emt 00:00:12]} Rb4 {[%clk 00:09:21]} {[%emt 00:00:51]} 55.
Bd5 {[%clk 00:04:49]} {[%emt 00:00:41]} Ne3 {[%clk 00:09:03]} {[%emt 00:00:49]}
56. Bc4 {[%clk 00:04:31]} {[%emt 00:00:48]} Rb7 {[%clk 00:05:59]} {[%emt
00:03:34]} 57. Rf4 {[%clk 00:02:24]} {[%emt 00:02:37]} Nf5 {[%clk 00:06:26]}
{[%emt 00:00:03]} 58. h4 {[%clk 00:01:59]} {[%emt 00:00:54]} Ne3 {[%clk
00:06:48]} {[%emt 00:00:09]} 59. Rdf2 {[%clk 00:01:51]} {[%emt 00:00:37]} f5
{[%clk 00:05:41]} {[%emt 00:01:37]} 60. gxf6 {[%clk 00:01:34]} {[%emt
00:00:48]} gxf6 {[%clk 00:06:08]} {[%emt 00:00:02]} 61. Re2 {[%clk 00:00:32]}
{[%emt 00:01:33]} Rxe2+ {[%clk 00:06:34]} {[%emt 00:00:04]} 62. Bxe2 {[%clk
00:00:59]} {[%emt 00:00:03]} Rxb3 {[%clk 00:07:01]} {[%emt 00:00:03]} 63. Kg1
{[%clk 00:00:38]} {[%emt 00:00:52]} f5 {[%clk 00:06:20]} {[%emt 00:01:10]} 64.
Kf2 {[%clk 00:00:57]} {[%emt 00:00:10]} Kh6 {[%clk 00:06:39]} {[%emt 00:00:11]}
65. Rd4 {[%clk 00:01:20]} {[%emt 00:00:08]} Nc2 {[%clk 00:06:09]} {[%emt
00:00:59]} 66. Rd2 {[%clk 00:01:04]} {[%emt 00:00:46]} Nb4 {[%clk 00:06:27]}
{[%emt 00:00:13]} 67. Rd6 {[%clk 00:01:20]} {[%emt 00:00:13]} Rh3 {[%clk
00:01:33]} {[%emt 00:05:25]} 68. h5 {[%clk 00:01:43]} {[%emt 00:00:07]} Rxh5
{[%clk 00:01:12]} {[%emt 00:00:51]} 69. Bxh5 {[%clk 00:02:09]} {[%emt
00:00:03]} Kxh5 {[%clk 00:01:39]} {[%emt 00:00:03]} 70. Kg3 {[%clk 00:02:33]}
{[%emt 00:00:06]} g5 {[%clk 00:01:34]} {[%emt 00:00:36]} 71. Rf6 {[%clk
00:02:57]} {[%emt 00:00:04]} 1/2-1/2

[Event "The Kvibergspelen 2023"]
[Site "Kviberg Park Hotel & Conference, Krutvagen 2, Gothenburg, Sweden"]
[Date "2023.09.17"]
[Round "7.2"]
[White "Olsson, William"]
[Black "Golubka, Petro"]
[Result "1/2-1/2"]
[TimeControl "15 minutes + 5 seconds per move from move one (Round 1 - 4) / 90 minutes + 30 seconds per move from move one (Round 5 - 8)"]
[WhiteTitle "FM"]
[BlackTitle "GM"]
[WhiteFideId "1741721"]
[BlackFideId "14114224"]
[WhiteElo "2376"]
[BlackElo "2439"]

1. c4 {[%clk 01:30:58]} {[%emt 00:00:02]} e6 {[%clk 01:19:54]} {[%emt
00:11:01]} 2. g3 {[%clk 01:31:14]} {[%emt 00:00:18]} d5 {[%clk 01:20:18]}
{[%emt 00:00:07]} 3. Bg2 {[%clk 01:31:39]} {[%emt 00:00:06]} Nf6 {[%clk
01:20:41]} {[%emt 00:00:07]} 4. Nf3 {[%clk 01:32:04]} {[%emt 00:00:04]} Be7
{[%clk 01:20:58]} {[%emt 00:00:13]} 5. O-O {[%clk 01:32:27]} {[%emt 00:00:07]}
O-O {[%clk 01:21:23]} {[%emt 00:00:05]} 6. d4 {[%clk 01:32:53]} {[%emt
00:00:03]} c6 {[%clk 01:21:49]} {[%emt 00:00:05]} 7. Qc2 {[%clk 01:33:17]}
{[%emt 00:00:06]} b6 {[%clk 01:21:57]} {[%emt 00:00:21]} 8. Rd1 {[%clk
01:33:42]} {[%emt 00:00:05]} Bb7 {[%clk 01:21:22]} {[%emt 00:01:06]} 9. Bf4
{[%emt 00:14:24]} Nh5 {[%clk 01:13:30]} 10. Bc1 {[%clk 01:27:21]} {[%emt
00:01:19]} f5 {[%clk 01:12:26]} {[%emt 00:01:34]} 11. Nbd2 {[%clk 01:24:06]}
{[%emt 00:03:44]} Nd7 {[%clk 01:10:53]} {[%emt 00:02:04]} 12. Ne1 {[%clk
01:18:31]} {[%emt 00:06:05]} Bd6 {[%clk 01:06:37]} {[%emt 00:04:46]} 13. Nd3
{[%clk 01:17:03]} {[%emt 00:01:57]} Qe7 {[%clk 01:06:47]} {[%emt 00:00:20]} 14.
Nf3 {[%clk 01:15:20]} {[%emt 00:02:12]} Rac8 {[%clk 01:06:40]} {[%emt
00:00:38]} 15. Nfe5 {[%clk 01:06:03]} {[%emt 00:09:49]} c5 {[%clk 01:01:35]}
{[%emt 00:05:34]} 16. Nxd7 {[%clk 01:06:11]} {[%emt 00:00:21]} Qxd7 {[%clk
01:02:00]} {[%emt 00:00:06]} 17. dxc5 {[%clk 01:06:33]} {[%emt 00:00:07]} Bxc5
{[%clk 00:54:45]} {[%emt 00:07:45]} 18. Nxc5 {[%clk 01:06:57]} {[%emt
00:00:07]} Rxc5 {[%clk 00:54:02]} {[%emt 00:01:12]} 19. b3 {[%clk 00:56:57]}
{[%emt 00:10:21]} Rfc8 {[%clk 00:52:38]} {[%emt 00:02:03]} 20. Be3 {[%clk
00:57:00]} {[%emt 00:00:25]} R5c7 {[%clk 00:52:56]} {[%emt 00:00:15]} 21. Qb2
{[%clk 00:57:09]} {[%emt 00:00:20]} Nf6 {[%clk 00:48:25]} {[%emt 00:05:01]} 22.
Bf4 {[%clk 00:44:51]} {[%emt 00:12:49]} Rc5 {[%clk 00:48:38]} {[%emt 00:00:16]}
23. Be3 {[%clk 00:45:17]} {[%emt 00:00:04]} R5c7 {[%clk 00:49:03]} {[%emt
00:00:05]} 24. Bg5 {[%clk 00:37:20]} {[%emt 00:08:27]} Ne4 {[%clk 00:47:22]}
{[%emt 00:02:11]} 25. Bf4 {[%clk 00:37:47]} {[%emt 00:00:02]} Rc5 {[%clk
00:47:51]} {[%emt 00:00:02]} 26. Be3 {[%clk 00:38:12]} {[%emt 00:00:05]} R5c7
{[%clk 00:48:20]} {[%emt 00:00:01]} 27. Bf4 {[%clk 00:36:18]} {[%emt 00:02:24]}
Rc5 {[%clk 00:48:15]} {[%emt 00:00:35]} 28. Be3 {[%clk 00:36:36]} {[%emt
00:00:12]} R5c7 {[%clk 00:48:40]} {[%emt 00:00:05]} 1/2-1/2

[Event "The Kvibergspelen 2023"]
[Site "Kviberg Park Hotel & Conference, Krutvagen 2, Gothenburg, Sweden"]
[Date "2023.09.17"]
[Round "7.3"]
[White "Jacobsen, Mikkel Manosri"]
[Black "Sivuk, Vitaly"]
[Result "0-1"]
[TimeControl "15 minutes + 5 seconds per move from move one (Round 1 - 4) / 90 minutes + 30 seconds per move from move one (Round 5 - 8)"]
[WhiteTitle "FM"]
[BlackTitle "GM"]
[WhiteFideId "1444514"]
[BlackFideId "14116502"]
[WhiteElo "2313"]
[BlackElo "2461"]

1. c4 {[%clk 01:30:57]} {[%emt 00:00:03]} Nf6 {[%clk 01:25:11]} {[%emt
00:05:49]} 2. g3 {[%clk 01:31:20]} {[%emt 00:00:07]} g6 {[%clk 01:25:14]}
{[%emt 00:00:27]} 3. Bg2 {[%clk 01:31:34]} {[%emt 00:00:16]} Bg7 {[%clk
01:25:36]} {[%emt 00:00:08]} 4. Nc3 {[%clk 01:31:56]} {[%emt 00:00:08]} O-O
{[%clk 01:25:57]} {[%emt 00:00:09]} 5. Nf3 {[%clk 01:31:38]} {[%emt 00:00:48]}
c5 {[%clk 01:23:04]} {[%emt 00:03:24]} 6. d4 {[%clk 01:31:09]} {[%emt
00:00:59]} d5 {[%clk 01:23:17]} {[%emt 00:00:17]} 7. dxc5 {[%clk 01:28:14]}
{[%emt 00:03:25]} Qa5 {[%clk 01:11:32]} {[%emt 00:12:15]} 8. cxd5 {[%clk
01:26:43]} {[%emt 00:02:01]} Nxd5 {[%clk 01:11:55]} {[%emt 00:00:07]} 9. Qxd5
{[%clk 01:15:07]} {[%emt 00:12:05]} Bxc3+ {[%clk 01:11:49]} {[%emt 00:00:35]}
10. Bd2 {[%clk 01:14:51]} {[%emt 00:00:47]} Rd8 {[%clk 01:12:09]} {[%emt
00:00:10]} 11. Bxc3 {[%clk 01:13:46]} {[%emt 00:01:35]} Qxc3+ {[%clk 01:12:31]}
{[%emt 00:00:09]} 12. bxc3 {[%clk 01:14:12]} {[%emt 00:00:04]} Rxd5 {[%clk
01:12:54]} {[%emt 00:00:06]} 13. c6 {[%clk 01:10:41]} {[%emt 00:04:01]} Nxc6
{[%clk 01:12:22]} {[%emt 00:01:02]} 14. Nd4 {[%clk 01:10:02]} {[%emt 00:01:09]}
Rc5 {[%clk 01:11:54]} {[%emt 00:00:58]} 15. Nxc6 {[%clk 00:56:14]} {[%emt
00:14:18]} bxc6 {[%clk 01:12:08]} {[%emt 00:00:16]} 16. Kd2 {[%clk 00:56:24]}
{[%emt 00:00:20]} Bf5 {[%clk 01:07:18]} {[%emt 00:05:20]} 17. e4 {[%clk
00:56:26]} {[%emt 00:00:28]} Be6 {[%clk 01:07:34]} {[%emt 00:00:13]} 18. Kc2
{[%clk 00:56:06]} {[%emt 00:00:51]} Rb8 {[%clk 01:05:20]} {[%emt 00:02:44]} 19.
Rhb1 {[%clk 00:53:32]} {[%emt 00:03:04]} Rxb1 {[%clk 01:05:05]} {[%emt
00:00:46]} 20. Kxb1 {[%clk 00:45:10]} {[%emt 00:08:52]} Rxc3 {[%clk 01:05:12]}
{[%emt 00:00:23]} 21. Kb2 {[%clk 00:45:35]} {[%emt 00:00:05]} Rd3 {[%clk
01:04:10]} {[%emt 00:01:32]} 22. Kc2 {[%clk 00:45:58]} {[%emt 00:00:06]} Rd4
{[%clk 01:03:55]} {[%emt 00:00:45]} 23. Kc3 {[%clk 00:45:45]} {[%emt 00:00:43]}
Rc4+ {[%clk 01:02:46]} {[%emt 00:01:39]} 24. Kd2 {[%clk 00:45:36]} {[%emt
00:00:40]} Rb4 {[%clk 01:02:52]} {[%emt 00:00:23]} 25. Kc3 {[%clk 00:45:59]}
{[%emt 00:00:07]} c5 {[%clk 01:03:13]} {[%emt 00:00:09]} 26. f3 {[%clk
00:46:10]} {[%emt 00:00:19]} a5 {[%clk 01:02:05]} {[%emt 00:01:38]} 27. Bf1
{[%clk 00:46:14]} {[%emt 00:00:25]} a4 {[%clk 00:58:59]} {[%emt 00:03:37]} 28.
Bd3 {[%clk 00:45:54]} {[%emt 00:00:50]} a3 {[%clk 00:59:02]} {[%emt 00:00:26]}
29. f4 {[%clk 00:42:22]} {[%emt 00:04:03]} Rb2 {[%clk 00:51:05]} {[%emt
00:08:28]} 30. f5 {[%clk 00:41:09]} {[%emt 00:01:42]} Bxa2 {[%clk 00:42:20]}
{[%emt 00:09:15]} 31. Bc2 {[%clk 00:39:52]} {[%emt 00:01:47]} Kg7 {[%clk
00:39:37]} {[%emt 00:03:12]} 32. h4 {[%clk 00:38:08]} {[%emt 00:02:15]} gxf5
{[%clk 00:35:25]} {[%emt 00:04:43]} 33. exf5 {[%clk 00:38:24]} {[%emt
00:00:14]} h5 {[%clk 00:35:47]} {[%emt 00:00:07]} 34. Rd1 {[%clk 00:35:45]}
{[%emt 00:03:08]} Kf6 {[%clk 00:35:29]} {[%emt 00:00:49]} 35. Rd7 {[%clk
00:35:47]} {[%emt 00:00:29]} Bb1 {[%clk 00:35:34]} {[%emt 00:00:25]} 36. Bxb1
{[%clk 00:35:33]} {[%emt 00:00:43]} Rxb1 {[%clk 00:35:57]} {[%emt 00:00:07]} 37.
Ra7 {[%clk 00:35:59]} {[%emt 00:00:05]} Rg1 {[%clk 00:36:16]} {[%emt 00:00:10]}
38. Kd4 {[%clk 00:35:48]} {[%emt 00:00:11]} Ke5+ {[%clk 00:36:16]} 0-1